bitfinex-derivatives/quotes_SOLF0:USTF0_20241211
["timestamp","ask_amount","ask_price","bid_price","bid_amount"]
[1733896174543,7.09844739,218.21,218.19,2.16]
[1733896174845,7.09844739,218.19,218.17,2.16]
[1733896176949,2.2904,218.18,218.17,2.16]
[1733896177152,2.2904,218.18,218.15,2.16]
[1733896177353,7.09844739,218.17,218.15,2.16]
[1733896181554,9.38894739,218.17,218.15,2.16]
[1733896181852,9.38894739,218.17,218.14,2.16]
[1733896182856,9.38854739,218.21,218.14,9.25844739]
[1733896183048,7.09844739,218.19,218.14,2.16]
[1733896183248,9.38894739,218.17,218.14,2.16]
[1733896183447,7.09844739,218.17,218.14,2.16]
[1733896191859,9.38884739,218.18,218.14,4.4508]
[1733896193465,9.38884739,218.18,218.14,2.16]
[1733896196359,7.09844739,218.2,218.17,2.2904]
[1733896197468,7.09844739,218.2,218.16,2.2906]
[1733896198064,7.09844739,218.18,218.12,5.52477303]
[1733896198372,7.09844739,218.18,218.13,2.16]
[1733896198867,7.09844739,218.16,218.1,7.09844739]
[1733896199164,4.2961,218.24,218.11,2.16]
[1733896199165,7.09844739,218.14,218.11,2.16]
[1733896199764,7.09844739,218.14,218.06,7.09844739]
[1733896199964,7.09844739,218.14,218.07,2.16]
[1733896200165,7.09844739,218.14,218.08,5.37185984]
[1733896200369,9.38924739,218.14,218.09,2.2913]
[1733896201168,9.38924739,218.14,218.1,2.16]
[1733896201963,7.09844739,218.14,218.1,4.4512]
[1733896202169,7.09844739,218.14,218.1,2.16]
[1733896202368,7.09844739,218.16,218.08,12.47030723]
[1733896202569,7.09844739,218.16,218.09,2.16]
[1733896203171,9.38904739,218.16,218.11,2.2911]
[1733896206872,9.38924739,218.14,218.09,4.4513]
[1733896208470,9.38924739,218.14,218.1,2.2912]
[1733896211474,2.2909,218.13,218.11,2.16]
[1733896211671,7.09844739,218.12,218.08,2.16]
[1733896211972,7.09844739,218.1,218.07,2.16]
[1733896212472,2.16,218.17,218.02,50.10206097]
[1733896212473,2.2915,218.07,218.06,2.16]
[1733896215272,7.09844739,218.08,218.06,2.16]
[1733896215874,9.38984739,218.08,218.04,2.16]
[1733896216073,7.09844739,218.06,218.04,2.16]
[1733896217078,7.09844739,218.06,217.96,1.4323]
[1733896217274,7.09844739,218.01,217.97,2.16]
[1733896217475,7.09844739,218.01,217.98,2.16]
[1733896217781,7.09844739,218.01,217.96,2.16]
[1733896218181,4.3345,218.06,217.96,2.16]
[1733896218380,7.09844739,218.05,217.96,2.16]
[1733896218580,7.09844739,218.05,217.98,7.09844739]
[1733896218978,7.09844739,218.03,217.98,2.2924]
[1733896220382,7.09844739,218.03,218.01,2.2921]
[1733896220584,7.09844739,218.03,218.02,2.16]
[1733896224388,5.85747566,218.19,218.02,9.25844739]
[1733896224688,7.09844739,218.09,218.02,9.25844739]
[1733896225686,2.291,218.13,218.08,2.2914]
[1733896225886,7.09844739,218.12,218.08,2.16]
[1733896226285,7.09844739,218.1,218.08,2.16]
[1733896227688,7.09844739,218.1,218.08,4.4514]
[1733896228089,7.09844739,218.1,218.08,2.16]
[1733896232491,4.205,218.18,218.08,2.16]
[1733896232492,7.09844739,218.13,218.08,2.16]
[1733896233290,7.09844739,218.13,218.1,2.2911]
[1733896233989,7.09844739,218.13,218.11,2.2911]
[1733896236493,7.09844739,218.13,218.08,2.16]
[1733896236693,7.09844739,218.11,218.08,2.16]
[1733896237296,7.09844739,218.11,218.08,2.14]
[1733896243797,7.09844739,218.09,217.97,1.4197]
[1733896244004,7.09844739,218.07,218.0,7.09844739]
[1733896244500,7.09844739,218.07,218.01,2.14]
[1733896244704,7.09844739,218.07,218.0,7.09844739]
[1733896244902,7.09844739,218.05,218.01,2.14]
[1733896245107,7.09844739,218.03,218.02,2.14]
[1733896245603,7.09844739,218.03,218.01,2.14]
[1733896245805,7.09844739,218.02,218.01,2.14]
[1733896246300,7.09844739,218.02,217.99,2.14]
[1733896246506,7.09844739,218.0,217.94,7.09844739]
[1733896246707,7.09844739,218.0,217.95,2.14]
[1733896247205,7.09844739,218.0,217.96,2.14]
[1733896247406,7.09844739,218.0,217.96,7.70765992]
[1733896247611,7.09844739,218.0,217.97,2.2926]
[1733896248302,4.2367,218.1,217.96,7.70765992]
[1733896248303,7.09844739,218.02,217.96,7.70765992]
[1733896249207,7.09844739,218.02,217.98,2.2924]
[1733896249809,7.09844739,218.02,217.96,14.80610731]
[1733896250007,7.09844739,218.02,218.01,2.2922]
[1733896250206,7.09844739,218.02,218.01,4.4322]
[1733896251603,7.09844739,218.04,218.01,2.14]
[1733896252407,7.09844739,218.04,218.02,2.2921]
[1733896252608,7.09844739,218.04,218.01,2.14]
[1733896253111,7.09844739,218.08,218.05,2.2917]
[1733896253310,7.09844739,218.08,218.06,2.14]
[1733896255116,7.09844739,218.08,218.06,4.4316]
[1733896257812,0.23301,218.13,218.06,2.14]
[1733896258018,7.09844739,218.12,218.06,2.14]
[1733896259311,7.09844739,218.12,218.06,4.4315]
[1733896259521,7.09844739,218.1,218.06,4.4315]
[1733896260322,7.09844739,218.1,218.06,2.14]
[1733896260512,7.09844739,218.1,218.07,2.2915]
[1733896263518,7.09844739,218.12,218.06,2.14]
[1733896265624,7.09844739,218.12,218.09,2.2913]
[1733896265920,0.23301,218.13,218.09,2.2913]
[1733896266225,7.33145739,218.13,218.09,2.2913]
[1733896267320,7.09844739,218.13,218.09,2.2913]
[1733896270320,7.09844739,218.11,218.07,2.2915]
[1733896270527,7.09844739,218.09,218.07,2.2915]
[1733896273233,7.09844739,218.11,218.07,2.2915]
[1733896273429,6.495,218.15,218.06,2.14]
[1733896273730,7.09844739,218.13,218.06,2.14]
[1733896274329,1.3671,218.15,218.07,7.09844739]
[1733896274524,189.55877485,218.29,218.09,7.09844739]
[1733896274525,7.09844739,218.16,218.09,7.09844739]
[1733896275633,7.09844739,218.16,218.13,2.2909]
[1733896275830,7.09844739,218.16,218.14,2.14]
[1733896276930,7.09844739,218.18,218.14,4.4308]
[1733896277831,7.09844739,218.18,218.15,2.2907]
[1733896278030,2.2901,218.21,218.14,2.14]
[1733896278232,9.97134739,218.22,218.15,7.09844739]
[1733896278425,7.09844739,218.22,218.18,2.2904]
[1733896278729,7.09844739,218.2,218.19,2.14]
[1733896280335,9.38864739,218.2,218.17,2.14]
[1733896280538,7.09844739,218.18,218.17,2.14]
[1733896281931,7.09844739,218.2,218.17,2.14]
[1733896282133,7.09844739,218.22,218.17,2.14]
[1733896282326,7.37516739,218.23,218.19,2.2903]
[1733896282834,7.37516739,218.23,218.17,2.14]
[1733896283237,9.66506739,218.23,218.18,2.2904]
[1733896283434,0.27672,218.23,218.22,7.09844739]
[1733896283633,0.27672,218.23,218.22,9.23844739]
[1733896283834,7.09844739,218.35,218.26,2.2895]
[1733896284034,2.7373,218.38,218.27,9.23844739]
[1733896284230,22.58254364,218.37,218.27,7.09844739]
[1733896284538,7.09844739,218.35,218.28,2.14]
[1733896285230,7.09844739,218.35,218.3,2.2891]
[1733896286232,7.09844739,218.35,218.31,2.14]
[1733896286532,7.09844739,218.33,218.24,7.09844739]
[1733896286736,7.09844739,218.31,218.25,2.14]
[1733896286933,7.09844739,218.31,218.26,2.14]
[1733896287134,2.61355,218.34,218.26,2.14]
[1733896287335,7.09844739,218.32,218.26,2.14]
[1733896288431,7.09844739,218.32,218.26,9.23844739]
[1733896288636,7.09844739,218.32,218.27,2.14]
[1733896289235,7.09844739,218.32,218.28,2.2893]
[1733896289539,7.42319739,218.34,218.27,2.14]
[1733896290431,9.71189739,218.34,218.27,4.4293]
[1733896290632,7.09844739,218.32,218.27,2.14]
[1733896291639,9.38734739,218.32,218.27,2.14]
[1733896293040,9.38734739,218.32,218.26,2.2895]
[1733896293237,9.38734739,218.32,218.27,2.14]
[1733896294938,2.289,218.31,218.27,2.14]
[1733896295638,2.289,218.31,218.16,4.1916]
[1733896295639,7.09844739,218.28,218.25,2.14]
[1733896296038,7.09844739,218.26,218.25,2.14]
[1733896296344,7.09844739,218.26,218.2,2.14]
[1733896296546,7.09844739,218.23,218.2,2.14]
[1733896296944,7.09844739,218.23,218.11,2.8286]
[1733896297139,7.09844739,218.23,218.15,7.09844739]
[1733896297742,7.09844739,218.23,218.18,2.2903]
[1733896298045,7.09844739,218.23,218.19,2.14]
[1733896299043,7.09844739,218.25,218.19,9.23844739]
[1733896299342,7.09844739,218.27,218.19,9.23844739]
[1733896300144,7.09844739,218.27,218.22,2.2899]
[1733896301145,7.09844739,218.27,218.19,2.14]
[1733896301146,189.55877485,218.46,218.32,2.2889]
[1733896301346,2.697,218.42,218.33,2.14]
[1733896301647,7.09844739,218.38,218.33,2.14]
[1733896302847,7.09844739,218.37,218.33,2.14]
[1733896303747,7.09844739,218.37,218.33,4.4288]
[1733896304150,7.09844739,218.37,218.33,2.14]
[1733896304946,7.09844739,218.39,218.33,4.4288]
[1733896305146,2.697,218.42,218.33,2.14]
[1733896305453,7.09844739,218.4,218.34,7.09844739]
[1733896306046,7.09844739,218.4,218.35,2.2886]
[1733896306651,2.697,218.42,218.36,7.09844739]
[1733896306950,7.09844739,218.44,218.36,7.09844739]
[1733896307646,9.38614739,218.44,218.38,2.2883]
[1733896307843,1.4158,218.51,218.39,2.14]
[1733896308047,7.09844739,218.46,218.39,2.14]
[1733896308343,7.09844739,218.47,218.4,7.09844739]
[1733896309145,2.2872,218.49,218.41,2.2879]
[1733896309350,7.09844739,218.48,218.42,7.09844739]
[1733896309648,8.49494739,218.5,218.44,2.2876]
[1733896309951,8.49494739,218.5,218.45,2.14]
[1733896310545,8.49494739,218.5,218.45,4.4275]
[1733896310754,8.49494739,218.5,218.45,2.14]
[1733896311150,13.35089932,218.52,218.45,2.14]
[1733896311351,11.06409932,218.52,218.45,2.14]
[1733896311950,2.287,218.5,218.45,2.14]
[1733896312147,11.06409932,218.52,218.45,2.14]
[1733896312554,2.287,218.5,218.45,2.14]
[1733896312753,11.06409932,218.52,218.45,2.14]
[1733896314955,11.06409932,218.52,218.46,2.14]
[1733896315656,2.2872,218.49,218.46,2.14]
[1733896317650,2.287,218.51,218.46,2.14]
[1733896317856,11.06409932,218.52,218.46,2.14]
[1733896319160,2.287,218.5,218.46,2.14]
[1733896320564,2.2869,218.52,218.46,2.14]
[1733896321066,1.4514,218.55,218.46,2.14]
[1733896321366,2.9021,218.57,218.46,2.14]
[1733896321763,1.3955,218.6,218.47,11.06409932]
[1733896322062,11.22639932,218.63,218.5,11.06409932]
[1733896322267,11.22639932,218.63,218.51,2.14]
[1733896322663,11.22639932,218.63,218.53,2.2867]
[1733896323364,2.286,218.6,218.54,2.2866]
[1733896323665,11.22639932,218.63,218.51,2.14]
[1733896324658,2.2861,218.59,218.53,2.2867]
[1733896325971,2.2862,218.58,218.53,2.2867]
[1733896327561,0.1623,218.63,218.53,2.2867]
[1733896327562,0.1623,218.63,218.53,11.06409932]
[1733896327865,0.1623,218.63,218.56,2.2864]
[1733896328169,0.1623,218.63,218.57,2.14]
[1733896328474,11.06409932,218.68,218.57,2.14]
[1733896328768,2.2859,218.61,218.57,2.14]
[1733896330069,11.06409932,218.68,218.57,2.14]
[1733896330265,12.88108111,218.67,218.57,4.4265]
[1733896330467,11.06409932,218.68,218.57,4.4265]
[1733896330766,12.88028769,218.67,218.57,4.4265]
[1733896330972,11.06409932,218.68,218.57,4.4265]
[1733896331169,11.06409932,218.71,218.58,2.2864]
[1733896331471,12.87417494,218.7,218.58,2.2864]
[1733896331672,11.06409932,218.71,218.58,2.2864]
[1733896331874,2.2859,218.63,218.58,2.2864]
[1733896332068,2.2859,218.63,218.59,2.14]
[1733896333579,5.49743298,218.71,218.6,7.07044798]
[1733896333773,7.07044798,218.68,218.6,7.07044798]
[1733896335073,7.07044798,218.64,218.56,1.3635]
[1733896335273,5.49743298,218.71,218.57,9.21044798]
[1733896335576,7.07044798,218.62,218.58,2.14]
[1733896335775,2.2864,218.59,218.58,2.14]
[1733896336174,2.2869,218.54,218.47,2.2876]
[1733896336476,7.07044798,218.57,218.49,7.07044798]
[1733896337375,2.2871,218.52,218.49,7.07044798]
[1733896337675,2.2871,218.52,218.48,2.14]
[1733896337676,2.2871,218.52,218.48,9.21044798]
[1733896339271,15.37799365,218.61,218.48,7.66919193]
[1733896339472,15.37799365,218.61,218.48,9.95659193]
[1733896341574,2.2869,218.54,218.48,9.95659193]
[1733896341878,11.05849365,218.58,218.48,7.66919193]
[1733896343080,2.287,218.53,218.48,7.66919193]
[1733896343877,11.05849365,218.59,218.48,7.66919193]
[1733896344078,2.2868,218.55,218.49,2.2873]
[1733896344279,11.05849365,218.59,218.48,7.66919193]
[1733896344479,2.2869,218.54,218.48,9.95659193]
[1733896344977,4.3195,218.61,218.48,18.72768558]
[1733896345584,2.2864,218.59,218.53,2.2869]
[1733896345778,2.2864,218.59,218.54,2.14]
[1733896346384,2.2864,218.59,218.54,4.4268]
[1733896347580,2.2864,218.59,218.55,2.14]
[1733896348187,4.3195,218.61,218.55,2.14]
[1733896350283,12.96386275,218.6,218.55,2.14]
[1733896350487,2.2865,218.58,218.55,2.14]
[1733896351290,1.4866,218.61,218.55,2.14]
[1733896351483,11.05849365,218.65,218.55,2.14]
[1733896351685,22.5357071,218.64,218.55,2.14]
[1733896351887,22.5357071,218.63,218.55,2.14]
[1733896352088,12.97164622,218.62,218.55,2.14]
[1733896352289,12.97164622,218.61,218.55,2.14]
[1733896352488,11.05849365,218.65,218.55,2.14]
[1733896352685,2.2862,218.6,218.55,2.14]
[1733896353189,11.05849365,218.65,218.55,2.14]
[1733896353487,22.55701791,218.64,218.55,2.14]
[1733896353690,22.55701791,218.63,218.55,2.14]
[1733896353891,2.2864,218.58,218.55,2.14]
[1733896354293,2.2868,218.55,218.5,7.69479468]
[1733896354487,2.2868,218.55,218.51,2.14]
[1733896354687,11.05849365,218.62,218.51,2.14]
[1733896354896,11.05849365,218.59,218.51,2.14]
[1733896355087,12.98944472,218.58,218.51,2.14]
[1733896357193,12.98944472,218.58,218.48,7.88738222]
[1733896357385,12.98944472,218.58,218.5,2.14]
[1733896357589,2.287,218.53,218.5,2.14]
[1733896357790,11.05849365,218.59,218.5,2.14]
[1733896358086,22.58572544,218.58,218.5,2.14]
[1733896358392,13.00041664,218.57,218.5,2.14]
[1733896358588,2.287,218.53,218.5,2.14]
[1733896358789,11.05849365,218.59,218.5,2.14]
[1733896358987,22.59215142,218.58,218.5,2.14]
[1733896359187,13.00411607,218.57,218.5,2.14]
[1733896359392,11.05849365,218.56,218.47,2.14]
[1733896359994,2.287,218.53,218.47,2.14]
[1733896360194,11.05849365,218.56,218.47,2.14]
[1733896360396,13.01272798,218.55,218.47,2.14]
[1733896360694,11.05849365,218.56,218.47,2.14]
[1733896360893,13.01281928,218.55,218.47,2.14]
[1733896361095,11.05849365,218.56,218.47,2.14]
[1733896361391,13.01270886,218.55,218.47,2.14]
[1733896361694,11.05849365,218.56,218.47,2.14]
[1733896361997,13.01668843,218.55,218.47,2.14]
[1733896362192,11.05849365,218.56,218.47,2.14]
[1733896362394,13.01935067,218.55,218.47,2.14]
[1733896362599,11.05849365,218.56,218.47,2.14]
[1733896362987,1.442,218.57,218.48,2.2875]
[1733896363191,29.69758622,218.56,218.48,9.36467136]
[1733896363397,13.01899055,218.55,218.48,9.36467136]
[1733896364696,13.01899055,218.55,218.49,2.2873]
[1733896365289,2.287,218.53,218.48,9.36457136]
[1733896367098,7.07717136,218.52,218.47,2.14]
[1733896367293,7.07717136,218.5,218.43,54.65717136]
[1733896367495,7.07717136,218.5,218.3,52.1586]
[1733896367795,7.07717136,218.48,218.41,7.07717136]
[1733896367990,7.07717136,218.46,218.38,5.36325109]
[1733896368192,2.2881,218.42,218.39,2.14]
[1733896368390,7.07717136,218.44,218.39,2.14]
[1733896368892,2.8262,218.49,218.39,9.21717136]
[1733896369198,7.07717136,218.47,218.39,9.21717136]
[1733896369993,7.07717136,218.45,218.39,9.21717136]
[1733896370295,2.2879,218.44,218.39,2.14]
[1733896370600,7.07717136,218.45,218.39,2.14]
[1733896370893,2.8262,218.49,218.39,2.14]
[1733896370894,2.2881,218.42,218.39,2.14]
[1733896371296,2.2881,218.42,218.38,2.14]
[1733896371598,11.07064576,218.47,218.38,2.14]
[1733896371797,2.2882,218.41,218.38,2.14]
[1733896371990,2.2882,218.41,218.35,2.2888]
[1733896372195,11.07064576,218.44,218.33,2.289]
[1733896372389,11.07064576,218.44,218.34,2.14]
[1733896372390,2.2886,218.37,218.34,2.14]
[1733896374094,2.2886,218.37,218.31,5.52774601]
[1733896374294,2.2886,218.37,218.33,2.14]
[1733896374702,2.2885,218.38,218.33,2.14]
[1733896376093,11.07064576,218.41,218.31,5.52774601]
[1733896376299,2.2887,218.36,218.32,2.14]
[1733896377898,11.07064576,218.41,218.32,2.14]
[1733896378100,2.2886,218.38,218.32,2.14]
[1733896378797,2.2886,218.37,218.32,2.14]
[1733896380602,11.07064576,218.41,218.27,11.07064576]
[1733896380802,11.07064576,218.38,218.28,2.14]
[1733896381708,2.2889,218.34,218.29,2.2894]
[1733896382003,11.07064576,218.38,218.29,2.2894]
[1733896383599,2.2888,218.35,218.29,2.2894]
[1733896385408,11.07064576,218.38,218.28,7.76845699]
[1733896385613,2.2887,218.37,218.28,7.76845699]
[1733896386513,4.1755,218.4,218.34,2.2889]
[1733896386514,6.4639,218.4,218.34,2.2889]
[1733896387311,2.2884,218.39,218.34,2.2889]
[1733896387714,11.07064576,218.41,218.35,2.2888]
[1733896388013,2.2883,218.4,218.35,2.2888]
[1733896391418,7.08825636,218.38,218.33,4.4289]
[1733896392206,7.08825636,218.34,218.33,2.14]
[1733896392814,2.289,218.33,218.31,2.14]
[1733896393718,7.08825636,218.32,218.31,2.14]
[1733896395509,7.08825636,218.34,218.31,2.14]
[1733896396720,9.37715636,218.34,218.31,2.14]
[1733896398711,7.08825636,218.36,218.31,2.14]
[1733896399614,9.37695636,218.36,218.31,2.14]
[1733896400315,2.2888,218.35,218.31,2.14]
[1733896400818,7.08825636,218.36,218.31,2.14]
[1733896401021,2.2889,218.34,218.31,2.14]
[1733896401816,7.08825636,218.36,218.31,2.14]
[1733896402221,7.08825636,218.34,218.28,5.62845699]
[1733896402417,7.08825636,218.32,218.23,7.08825636]
[1733896402721,2.2895,218.29,218.24,2.14]
[1733896403025,2.2895,218.29,218.21,7.08825636]
[1733896403212,2.2897,218.27,218.22,4.4301]
[1733896403419,2.2897,218.27,218.23,2.14]
[1733896404015,9.37805636,218.26,218.23,2.14]
[1733896405423,7.08825636,218.26,218.23,2.14]
[1733896406221,4.3135,218.35,218.23,2.14]
[1733896406423,7.08825636,218.29,218.23,2.14]
[1733896407120,4.3135,218.35,218.23,2.14]
[1733896407318,7.08825636,218.31,218.24,7.08825636]
[1733896407518,7.08825636,218.31,218.28,2.2895]
[1733896407917,7.08825636,218.31,218.28,4.4295]
[1733896409122,7.08825636,218.31,218.28,2.14]
[1733896412925,9.37755636,218.31,218.28,2.14]
[1733896414021,7.08825636,218.29,218.25,2.14]
[1733896414228,7.08825636,218.27,218.24,2.14]
[1733896414824,9.37795636,218.27,218.24,2.14]
[1733896420029,9.37795636,218.27,218.23,4.4301]
[1733896423835,4.3135,218.35,218.23,4.4301]
[1733896424035,33.20298607,218.34,218.23,4.4301]
[1733896424235,7.08825636,218.27,218.23,4.4301]
[1733896425737,9.37795636,218.27,218.23,4.4301]
[1733896426134,7.08825636,218.27,218.23,2.14]
[1733896426335,2.2898,218.26,218.23,2.14]
[1733896429543,9.37805636,218.27,218.23,2.14]
[1733896435458,2.29,218.24,218.2,4.4303]
[1733896435757,7.08825636,218.23,218.2,4.4303]
[1733896437263,2.29,218.24,218.2,4.4303]
[1733896437865,2.29,218.24,218.2,2.2903]
[1733896439955,2.29,218.24,218.2,4.4303]
[1733896440558,2.29,218.24,218.2,2.14]
[1733896441860,2.2898,218.26,218.2,2.14]
[1733896443559,7.08825636,218.3,218.23,7.08825636]
[1733896443765,7.08825636,218.32,218.23,7.08825636]
[1733896443968,22.66470751,218.31,218.23,7.08825636]
[1733896444167,13.04571135,218.3,218.23,7.08825636]
[1733896444359,7.08825636,218.32,218.23,7.08825636]
[1733896444556,13.04898599,218.31,218.28,2.2895]
[1733896444766,7.08825636,218.32,218.28,4.4295]
[1733896445161,13.05120976,218.31,218.28,4.4295]
[1733896445469,7.08825636,218.32,218.28,4.4295]
[1733896445662,9.37735636,218.32,218.28,4.4295]
[1733896445969,9.37735636,218.32,218.28,2.14]
[1733896446161,13.05389849,218.31,218.28,2.14]
[1733896446365,9.37735636,218.32,218.28,2.14]
[1733896446565,13.05389849,218.31,218.28,2.14]
[1733896446763,9.37735636,218.32,218.28,2.14]
[1733896446964,13.05392745,218.31,218.28,2.14]
[1733896447167,9.37735636,218.32,218.28,2.14]
[1733896447365,13.05840688,218.31,218.28,2.14]
[1733896447566,9.37735636,218.32,218.28,2.14]
[1733896447768,13.0582206,218.31,218.28,2.14]
[1733896448065,9.37735636,218.32,218.28,2.14]
[1733896448264,13.05873898,218.31,218.28,2.14]
[1733896448467,9.37735636,218.32,218.28,2.14]
[1733896448664,7.08825636,218.3,218.28,2.14]
[1733896454173,2.289,218.33,218.29,2.2895]
[1733896454377,20.14664202,218.32,218.29,2.2895]
[1733896454668,7.08825636,218.32,218.29,2.2895]
[1733896455070,7.08825636,218.32,218.28,4.4296]
[1733896458271,7.08825636,218.3,218.28,2.14]
[1733896458477,7.08825636,218.3,218.26,2.14]
[1733896458671,9.37805636,218.26,218.25,2.14]
[1733896458979,7.08825636,218.26,218.22,2.14]
[1733896459276,7.08825636,218.23,218.21,2.14]
[1733896459477,7.08825636,218.23,218.2,2.14]
[1733896461972,2.29,218.24,218.2,2.14]
[1733896464670,191.69877485,218.34,218.2,2.14]
[1733896464874,2.2899,218.26,218.2,4.4304]
[1733896465073,13.05565966,218.25,218.2,4.4304]
[1733896465278,2.14,218.34,218.2,4.4304]
[1733896465481,31.11823242,218.33,218.2,4.4304]
[1733896465677,31.11823242,218.32,218.2,4.4304]
[1733896465877,31.11823242,218.31,218.2,4.4304]
[1733896466075,2.2897,218.27,218.2,4.4304]
[1733896466378,22.67990426,218.26,218.2,4.4304]
[1733896466681,13.05442618,218.25,218.2,2.14]
[1733896466980,7.0957966,218.27,218.21,7.0957966]
[1733896467284,7.0957966,218.29,218.26,2.2897]
[1733896467681,13.0517135,218.28,218.25,2.14]
[1733896467880,7.0957966,218.27,218.25,4.4299]
[1733896469174,7.0957966,218.27,218.25,2.14]
[1733896470278,2.2898,218.26,218.25,2.14]
[1733896470474,7.0957966,218.27,218.25,2.14]
[1733896471585,7.0957966,218.29,218.25,2.14]
[1733896471785,13.0516329,218.28,218.25,2.14]
[1733896472079,7.0957966,218.29,218.25,4.4298]
[1733896472383,13.05160589,218.28,218.25,4.4298]
[1733896472678,7.0957966,218.29,218.25,4.4298]
[1733896473282,13.05169137,218.28,218.25,4.4298]
[1733896473482,7.0957966,218.29,218.25,4.4298]
[1733896474085,7.0957966,218.29,218.27,2.2896]
[1733896474387,7.0957966,218.32,218.25,9.2357966]
[1733896474683,13.05064987,218.31,218.25,9.2357966]
[1733896474985,7.0957966,218.32,218.25,9.2357966]
[1733896475185,7.0957966,218.32,218.28,2.2895]
[1733896476287,7.0957966,218.32,218.29,2.2894]
[1733896479384,7.0957966,218.32,218.18,5.45346774]
[1733896479688,7.0957966,218.3,218.26,2.2897]
[1733896479988,7.0957966,218.3,218.27,2.14]
[1733896482583,9.3851966,218.3,218.27,2.14]
[1733896483284,7.0957966,218.3,218.27,2.14]
[1733896483482,7.0957966,218.3,218.27,4.4296]
[1733896485185,7.0957966,218.3,218.18,5.45346774]
[1733896485186,7.0957966,218.3,218.21,7.0957966]
[1733896485390,7.0957966,218.3,218.22,2.14]
[1733896486492,2.2895,218.29,218.25,2.2898]
[1733896487290,9.3851966,218.3,218.25,2.2898]
[1733896490695,7.0957966,218.3,218.26,2.2898]
[1733896498996,7.0957966,218.28,218.26,2.2898]
[1733896499399,7.0957966,218.28,218.22,2.14]
[1733896499605,7.0957966,218.26,218.23,2.14]
[1733896500104,7.0957966,218.26,218.22,2.14]
[1733896500704,7.0957966,218.26,218.22,4.4302]
[1733896501100,7.0957966,218.26,218.22,2.2902]
[1733896501300,7.0957966,218.26,218.22,4.4302]
[1733896502903,9.3855966,218.26,218.22,2.14]
[1733896503701,7.0957966,218.24,218.18,5.45346774]
[1733896503903,7.0957966,218.22,218.19,2.14]
[1733896504101,7.0957966,218.22,218.18,7.59346774]
[1733896504702,7.0957966,218.2,218.05,4.2117]
[1733896504906,7.0957966,218.18,218.05,4.2117]
[1733896505110,7.0957966,218.18,218.11,9.2357966]
[1733896505711,7.0957966,218.18,218.15,2.2909]
[1733896506908,6.6779,218.25,218.18,2.2906]
[1733896507105,7.0957966,218.22,218.18,2.14]
[1733896508716,7.0957966,218.22,218.18,4.4306]
[1733896508918,2.29,218.24,218.18,2.14]
[1733896509215,4.3879,218.25,218.18,2.14]
[1733896509513,7.0957966,218.24,218.18,2.14]
[1733896510104,4.3019,218.33,218.21,7.0957966]
[1733896510307,31.01219265,218.32,218.21,7.0957966]
[1733896510508,4.3019,218.33,218.21,7.0957966]
[1733896510509,7.0957966,218.29,218.21,7.0957966]
[1733896511715,7.0957966,218.29,218.24,2.29]
[1733896512015,7.0957966,218.29,218.25,2.14]
[1733896512514,7.0957966,218.27,218.25,2.14]
[1733896513809,2.2894,218.3,218.25,4.4298]
[1733896514010,7.0957966,218.29,218.25,4.4298]
[1733896515119,7.0957966,218.29,218.25,2.14]
[1733896516718,2.2894,218.3,218.25,2.14]
[1733896516919,7.0957966,218.29,218.25,2.14]
[1733896518918,2.2894,218.3,218.25,2.14]
[1733896519218,7.0957966,218.28,218.25,2.14]
[1733896524120,2.2898,218.26,218.25,2.14]
[1733896524321,9.3855966,218.26,218.21,2.2903]
[1733896524518,9.3855966,218.26,218.22,2.14]
[1733896525423,9.3855966,218.26,218.23,2.14]
[1733896531021,7.0957966,218.24,218.23,2.14]
[1733896532525,9.3857966,218.24,218.23,2.14]
[1733896533025,7.0957966,218.24,218.23,2.14]
[1733896533830,4.3019,218.33,218.24,2.29]